bitfinex/quotes_BTCUSD_20260215
["timestamp","ask_amount","ask_price","bid_price","bid_amount"]
[1771172711695,8.686e-05,68944.0,68938.0,0.02449914]
[1771172713867,8.686e-05,68944.0,68929.0,0.11795397]
[1771172713978,8.686e-05,68944.0,68928.0,0.44016]
[1771172713979,0.0004,68950.0,68930.0,0.63197816]
[1771172714184,0.63237816,68950.0,68934.0,0.09498146]
[1771172714537,0.63237816,68950.0,68937.0,0.02297251]
[1771172714929,0.63237816,68950.0,68939.0,0.02297251]
[1771172715802,0.63237816,68950.0,68939.0,0.11795397]
[1771172716405,0.0004,68950.0,68939.0,0.11795397]
[1771172717473,0.0004,68950.0,68940.0,0.02297251]
[1771172717651,0.0004,68950.0,68941.0,0.02297251]
[1771172717876,0.1459,68956.0,68948.0,0.02297251]
[1771172717999,0.1459,68956.0,68949.0,0.02297251]
[1771172718650,0.0004,68957.0,68949.0,0.02297251]
[1771172719091,0.0005292,68957.0,68949.0,0.09498146]
[1771172719317,0.0005292,68957.0,68950.0,0.02297251]
[1771172720038,0.0005292,68957.0,68950.0,0.11795397]
[1771172721445,0.0005292,68957.0,68951.0,0.02297251]
[1771172721781,0.0004,68964.0,68947.0,0.63197816]
[1771172721782,0.00036,68964.0,68953.0,0.02297251]
[1771172723258,0.00036,68964.0,68952.0,0.09498146]
[1771172724322,0.00036,68964.0,68955.0,0.11795397]
[1771172726631,0.00036,68964.0,68955.0,0.02297251]
[1771172727259,0.00036,68964.0,68953.0,0.34728]
[1771172729417,0.00036,68964.0,68953.0,0.37025251]
[1771172729847,0.00036,68964.0,68953.0,0.46523397]
[1771172730104,0.00036,68964.0,68954.0,0.02297251]
[1771172731956,0.00036,68964.0,68953.0,0.44226146]
[1771172732509,0.00036,68964.0,68953.0,0.34728]
[1771172732726,0.00036,68964.0,68954.0,0.09498146]
[1771172733602,0.00036,68964.0,68955.0,0.02297251]
[1771172734897,0.0004,68980.0,68964.0,0.02297251]
[1771172735106,0.0004,68980.0,68969.0,0.02297251]
[1771172735107,0.00052944,68978.0,68969.0,0.02297251]
[1771172735529,0.00052944,68978.0,68963.0,0.34728]
[1771172735530,0.02534618,68978.0,68963.0,0.37025251]
[1771172735857,0.02534618,68978.0,68964.0,0.09498146]
[1771172736062,0.09430474,68984.0,68964.0,0.09498146]
[1771172736063,0.02505374,68986.0,68970.0,0.02297251]
[1771172736283,0.02481674,68979.0,68971.0,0.34728]
[1771172737707,0.09430474,68983.0,68971.0,0.34728]
[1771172737983,0.01220117,68983.0,68971.0,0.34728]
[1771172738793,0.000237,68986.0,68974.0,0.02297251]
[1771172739233,0.000237,68986.0,68974.0,0.09498146]
[1771172741377,0.000237,68986.0,68975.0,0.02297251]
[1771172741591,0.000237,68986.0,68976.0,0.02297251]
[1771172744048,0.02387348,68985.0,68972.0,0.00145032]
[1771172745346,0.02387348,68985.0,68972.0,0.02629756]
[1771172745917,0.000637,68986.0,68974.0,0.02484724]
[1771172746163,0.000637,68986.0,68975.0,0.02484724]
[1771172746919,0.000637,68986.0,68975.0,0.11797091]
[1771172747118,0.000637,68986.0,68976.0,0.02484724]
[1771172747657,0.0004,68987.0,68977.0,0.09312367]
[1771172747860,0.1459,68990.0,68980.0,0.02484724]
[1771172748035,0.0004,68995.0,68981.0,0.09312367]
[1771172748210,0.02427348,68994.0,68981.0,0.09312367]
[1771172749397,0.0004,68994.0,68982.0,0.02484724]
[1771172751345,0.02387348,68992.0,68978.0,0.63197816]
[1771172751722,0.02387348,68992.0,68978.0,0.72510183]
[1771172752784,0.0004,68994.0,68979.0,0.43734035]
[1771172753011,0.0004,68994.0,68982.0,0.09312367]
[1771172753158,0.0004,68994.0,68983.0,0.00144963]
[1771172753368,0.0004,68994.0,68984.0,0.02484724]
[1771172754957,0.0004,68994.0,68985.0,0.00289917]
[1771172757126,0.0004,68994.0,68986.0,0.00289912]
[1771172757323,0.0004,68994.0,68984.0,0.00289912]
[1771172757541,0.0004,68994.0,68984.0,0.02774636]
[1771172759417,0.0004,68994.0,68984.0,0.00289912]
[1771172759614,0.0004,68994.0,68983.0,0.09602279]
[1771172759792,0.0004,68994.0,68984.0,0.00289903]
[1771172760855,0.0004,68994.0,68986.0,0.09312367]
[1771172761013,0.0004,68994.0,68986.0,0.09602261]
[1771172761412,0.0004,68994.0,68987.0,0.02484724]
[1771172761599,0.0004,68994.0,68987.0,0.09312367]
[1771172761801,0.0004,69000.0,68990.0,0.02484724]
[1771172762135,0.0004,69000.0,68993.0,0.02484724]
[1771172763108,0.0004,69000.0,68988.0,0.02484724]
[1771172763311,0.0004,69000.0,68987.0,0.34728]
[1771172763312,0.02387348,68998.0,68987.0,0.34728]
[1771172764131,0.02387348,68998.0,68988.0,0.63106928]
[1771172765245,0.00036641,68999.0,68988.0,0.63106928]
[1771172767142,0.00036641,68999.0,68989.0,0.63106928]
[1771172768001,0.02423989,68999.0,68989.0,0.63106928]
[1771172768162,0.02423989,68999.0,68987.0,0.34728]
[1771172769179,0.02387348,68998.0,68987.0,0.28570988]
[1771172769584,0.00076641,68999.0,68987.0,0.28570988]
[1771172769987,0.00052941,68999.0,68987.0,0.28570988]
[1771172770150,0.00052941,68999.0,68988.0,0.02484724]
[1771172770553,0.00052941,68999.0,68993.0,0.02484724]
[1771172770762,0.00052941,68999.0,68994.0,0.02484724]
[1771172771005,0.00052941,68999.0,68995.0,0.02484724]
[1771172771373,0.00052941,68999.0,68990.0,0.09312367]
[1771172773489,0.00052941,68999.0,68991.0,0.02424978]
[1771172776076,0.00052941,68999.0,68991.0,0.11053463]
[1771172778653,0.0004,69006.0,68995.0,0.07246813]
[1771172778927,0.00083128,69006.0,68996.0,0.37152978]
[1771172779286,0.00083128,69006.0,68996.0,1.00259906]
[1771172779546,0.00083128,69006.0,68997.0,0.08628485]
[1771172780282,0.0002083,69011.0,69000.0,0.02424978]
[1771172780496,0.0002083,69011.0,69000.0,0.11049066]
[1771172780937,0.0002083,69011.0,69000.0,0.08628485]
[1771172781336,0.0002083,69011.0,68996.0,0.37152978]
[1771172783301,0.02435498,69010.0,68997.0,0.02424978]
[1771172784698,0.02435498,69010.0,68996.0,0.34728]
[1771172785208,0.02435498,69006.0,68996.0,0.34728]
[1771172786941,0.02435498,69006.0,68993.0,0.34728]
[1771172787157,0.09909734,69010.0,68993.0,0.37196106]
[1771172787298,0.0868522,69010.0,68993.0,0.37196106]
[1771172787505,0.02435498,69006.0,68993.0,0.37196106]
[1771172790105,0.09909734,69010.0,68993.0,0.37196106]
[1771172790232,0.01224514,69010.0,68993.0,0.34771128]
[1771172790435,0.01224514,69010.0,68994.0,0.02424978]
[1771172790668,0.01224514,69010.0,68995.0,0.07246843]
[1771172790877,0.0002083,69011.0,68997.0,0.65531906]
[1771172791496,0.02435498,69010.0,68997.0,0.65531906]
[1771172792315,0.0004,69006.0,68997.0,0.65531906]
[1771172792738,0.0004,69006.0,68997.0,0.63106928]
[1771172793406,0.0004,69006.0,68997.0,0.65517238]
[1771172794107,0.0004,69006.0,68997.0,0.02424978]
[1771172795292,0.0004,69006.0,68995.0,0.08628485]
[1771172797481,0.0004,69006.0,68996.0,0.11053463]
[1771172797685,0.0004,69006.0,68997.0,0.02424978]
[1771172798479,0.0004,69006.0,68997.0,0.11053463]
[1771172798680,0.0004,69006.0,68997.0,0.08628485]
[1771172798888,0.0004,69006.0,68998.0,0.02424978]
[1771172800360,0.01245344,69011.0,68999.0,0.07246454]
[1771172800559,0.0002083,69011.0,69002.0,0.11053463]
[1771172800761,0.0002083,69011.0,69003.0,0.34728]
[1771172800986,0.0002083,69011.0,69003.0,0.43338494]
[1771172801520,0.0002083,69011.0,69004.0,0.02424978]
[1771172802159,0.0004,69006.0,69005.0,0.02424978]
[1771172802381,0.0002083,69011.0,69005.0,0.02424978]
[1771172803474,0.0002083,69011.0,69005.0,0.07245783]
[1771172803699,0.02392832,69026.0,69013.0,0.08212699]
[1771172803912,0.02392832,69026.0,69014.0,0.42940699]
[1771172804702,0.02392832,69026.0,69015.0,0.08212699]
[1771172805116,0.00033761,69023.0,69015.0,0.08212699]
[1771172805460,0.01224514,69033.0,69016.0,0.02400137]
[1771172805663,0.01224514,69033.0,69016.0,0.02413068]
[1771172806290,0.01224514,69033.0,69020.0,0.63106928]
[1771172807910,0.01324514,69033.0,69020.0,0.63106928]
[1771172808592,0.01224514,69033.0,69020.0,0.63106928]
[1771172808823,0.01324514,69033.0,69020.0,0.63106928]
[1771172809097,0.01324514,69033.0,69020.0,0.63092267]
[1771172809943,0.01224514,69033.0,69020.0,0.63092267]
[1771172811435,0.01264514,69033.0,69020.0,0.63092267]
[1771172812574,0.01264514,69033.0,69020.0,0.97816267]
[1771172812773,0.01264514,69033.0,69020.0,1.06028966]
[1771172813323,0.0004,69033.0,69020.0,1.06028966]
[1771172813528,0.0004,69033.0,69021.0,0.02400137]
[1771172816645,0.0004,69033.0,69020.0,1.06028966]
[1771172816851,0.02432832,69033.0,69020.0,1.06028966]
[1771172817346,0.0004,69033.0,69020.0,1.06028966]
[1771172817556,0.0004,69033.0,69021.0,0.02400137]
[1771172820325,0.07244591,69017.0,69000.0,0.09284]
[1771172820545,0.02392832,69009.0,68989.0,0.0002]
[1771172820750,0.02405756,69009.0,68991.0,0.09099883]
[1771172821813,0.02405756,69009.0,68990.0,0.0002]
[1771172821814,0.08466256,69007.0,68990.0,0.0002]
[1771172821988,0.01220514,69007.0,68991.0,0.09099883]
[1771172822420,0.01220514,69007.0,68996.0,0.0004]
[1771172824416,0.24960924,69009.0,68998.0,0.09099883]
[1771172824417,0.00012924,69009.0,68998.0,0.09099883]
[1771172825419,0.00012924,69009.0,68999.0,0.09099883]
[1771172829712,0.00012924,69009.0,69000.0,0.0002]
[1771172830704,0.00012924,69009.0,69001.0,0.09099883]
[1771172831312,0.00012924,69009.0,69001.0,0.09085221]
[1771172832463,0.00012924,69009.0,69000.0,0.0002]
[1771172832464,0.02392832,69008.0,69000.0,0.0002]
[1771172832678,0.00012924,69009.0,69001.0,0.09096951]
[1771172834261,0.00012924,69009.0,69000.0,0.0002]
[1771172835600,0.02267407,69009.0,69000.0,0.0002]
[1771172837369,0.02267407,69009.0,68999.0,0.0002]
[1771172837567,0.02267407,69009.0,69000.0,0.0002]
[1771172838174,0.00012924,69009.0,69000.0,0.09116951]
[1771172839010,0.00012924,69009.0,69000.0,0.09096951]
[1771172839374,0.02254483,69008.0,69000.0,0.09096951]
[1771172839799,0.02254483,69008.0,68999.0,0.0002]
[1771172844982,0.001,69008.0,69000.0,0.09096951]
[1771172845542,0.14642924,69009.0,69000.0,0.09096951]
[1771172845844,0.001,69008.0,69000.0,0.09096951]
[1771172846398,0.14642924,69009.0,69000.0,0.09096951]
[1771172846581,0.14742924,69009.0,69001.0,0.0002]
[1771172847891,0.14742924,69009.0,69002.0,0.09096951]
[1771172848106,0.14642924,69009.0,69002.0,0.09096951]
[1771172850492,0.14642924,69009.0,69002.0,0.02456639]
[1771172850691,9.53e-05,69011.0,69004.0,0.08635186]
[1771172850942,9.53e-05,69011.0,69004.0,0.11091825]
[1771172851148,9.53e-05,69011.0,69004.0,0.02456639]
[1771172851378,9.53e-05,69011.0,69001.0,0.0002]
[1771172851581,9.53e-05,69011.0,69001.0,0.00032924]
[1771172851942,9.53e-05,69011.0,69001.0,0.00012924]
[1771172852881,9.53e-05,69011.0,69003.0,0.08635186]
[1771172853023,9.53e-05,69011.0,69005.0,0.08635186]
[1771172853459,9.53e-05,69011.0,69005.0,0.11091825]
[1771172855780,9.53e-05,69011.0,69006.0,0.08635186]
[1771172856535,9.53e-05,69011.0,69006.0,0.11091825]
[1771172856746,9.53e-05,69011.0,69007.0,0.08635186]
[1771172857597,9.53e-05,69011.0,69008.0,0.02456639]
[1771172857807,0.0004,69016.0,69008.0,0.11111825]
[1771172858428,0.0004,69011.0,69009.0,0.02456639]
[1771172859484,0.0004,69011.0,69008.0,0.08635186]
[1771172859703,0.0004,69011.0,69009.0,0.0002]
[1771172860969,0.02254483,69030.0,69010.0,0.08635186]
[1771172861166,0.02254483,69030.0,69012.0,0.11091825]
[1771172861167,0.65355162,69030.0,69012.0,0.11091825]
[1771172861424,0.65355162,69030.0,69013.0,0.02456639]
[1771172863422,0.02280246,69027.0,69013.0,0.02456639]
[1771172865385,0.63100679,69030.0,69013.0,0.02456639]
[1771172866121,0.63100679,69030.0,69014.0,0.0002]
[1771172866481,0.63100679,69030.0,69015.0,0.02287176]
[1771172867291,0.63100679,69030.0,69014.0,0.0002]
[1771172867457,0.02280246,69027.0,69012.0,0.09009265]
[1771172867660,0.0005965,69021.0,69013.0,0.0002]
[1771172869081,0.0005965,69021.0,69012.0,0.09009265]
[1771172869231,0.0005965,69021.0,69013.0,0.0002]
[1771172869433,0.0005965,69021.0,69014.0,0.02287176]
[1771172872687,0.02280246,69031.0,69015.0,0.09009265]
[1771172872865,0.0001965,69032.0,69020.0,0.63100679]
[1771172873071,0.0001965,69032.0,69020.0,0.97824679]
[1771172873276,0.02299896,69032.0,69020.0,0.34724]
[1771172873481,0.0001965,69032.0,69020.0,0.34724]
[1771172874502,0.0001965,69032.0,69020.0,0.37011176]
[1771172875196,0.0011965,69032.0,69020.0,0.37011176]
[1771172875446,0.0011965,69032.0,69021.0,0.02287176]
[1771172875690,0.0005965,69032.0,69021.0,0.02287176]
[1771172876158,0.02280246,69030.0,69022.0,0.0002]
[1771172877480,0.02293174,69030.0,69022.0,0.0002]
[1771172877910,0.00012928,69030.0,69022.0,0.0002]
[1771172879350,0.02280246,69029.0,69022.0,0.0002]
[1771172882031,0.02280246,69029.0,69020.0,0.34724]
[1771172882335,0.02280246,69029.0,69021.0,0.0002]
[1771172883802,0.02320246,69029.0,69021.0,0.0002]
[1771172886573,0.02320246,69029.0,69020.0,0.34724]
[1771172886763,0.02320246,69029.0,69021.0,0.0002]
[1771172888515,0.02320246,69029.0,69020.0,0.34724]
[1771172888685,0.02320246,69029.0,69021.0,0.0002]
[1771172889971,0.0004,69029.0,69021.0,0.0002]
[1771172893225,0.0006025,69036.0,69021.0,0.0002]
[1771172893226,0.02280246,69041.0,69021.0,0.0002]
[1771172893425,0.02280246,69041.0,69025.0,0.02293695]
[1771172893555,0.02280246,69041.0,69030.0,0.63052191]
[1771172894341,0.000156,69045.0,69031.0,0.0002]
[1771172894552,0.0004,69036.0,69031.0,0.10778766]
[1771172895424,0.0004,69043.0,69031.0,0.10778766]
[1771172895595,0.02391001,69045.0,69031.0,0.10778766]
[1771172896622,0.02391001,69045.0,69031.0,0.0002]
[1771172896843,0.02391001,69045.0,69032.0,0.10758766]
[1771172898517,0.02391001,69045.0,69033.0,0.0002]
[1771172899115,0.02391001,69045.0,69032.0,0.10758766]
[1771172899328,0.02391001,69045.0,69033.0,0.0002]
[1771172901162,0.000156,69045.0,69034.0,0.10758766]
[1771172901785,0.000556,69045.0,69034.0,0.10758766]
[1771172904675,0.000556,69045.0,69035.0,0.08465071]
[1771172904872,0.000556,69045.0,69035.0,0.10758766]
[1771172908685,0.000556,69045.0,69036.0,0.0002]
[1771172912111,0.000556,69045.0,69035.0,0.02293695]
[1771172912318,0.01199765,69050.0,69036.0,0.0002]
[1771172912540,0.0004,69052.0,69036.0,0.0002]
[1771172912541,0.0004,69052.0,69041.0,0.10758766]
[1771172912677,0.0004,69052.0,69041.0,0.08465071]
[1771172912897,0.0004,69052.0,69041.0,0.10758766]
[1771172913097,0.0004,69052.0,69042.0,0.0002]
[1771172913702,0.0004,69052.0,69043.0,0.10758766]
[1771172913902,0.0004,69052.0,69044.0,0.02293695]
[1771172914339,0.00052926,69052.0,69044.0,0.02293695]
[1771172917687,0.00052926,69052.0,69044.0,0.10758766]
[1771172918751,0.00052926,69052.0,69045.0,0.0002]
[1771172920612,0.0575,69061.0,69048.0,0.63052191]
[1771172920842,0.02391001,69062.0,69048.0,0.63052191]
[1771172921043,0.02391001,69062.0,69049.0,0.0002]
[1771172921647,0.02375401,69062.0,69049.0,0.0002]
[1771172922761,0.0001412,69070.0,69052.0,0.63052191]
[1771172922974,0.02375401,69069.0,69052.0,0.63052191]
[1771172923594,0.02375401,69069.0,69052.0,0.65453716]
[1771172923804,0.02375401,69069.0,69053.0,0.08879578]
[1771172924042,0.02375401,69069.0,69054.0,0.02253589]
[1771172924328,0.0001412,69070.0,69056.0,0.02253589]
[1771172924476,0.0001412,69070.0,69056.0,0.08879578]
[1771172924680,0.0001412,69070.0,69057.0,0.36961589]
[1771172925539,0.02430189,69070.0,69057.0,0.36961589]
[1771172927352,0.02430189,69070.0,69057.0,0.34708]
[1771172927555,0.02430189,69070.0,69057.0,0.34693352]
[1771172929548,0.02430189,69070.0,69060.0,0.63052191]
[1771172929938,0.0001412,69070.0,69060.0,0.63052191]
[1771172930977,0.02416069,69069.0,69058.0,0.0002]
[1771172933049,0.02416069,69069.0,69058.0,5.352e-05]
[1771172934706,0.02416069,69069.0,69059.0,0.63052191]
[1771172935319,0.02416069,69069.0,69058.0,5.352e-05]
[1771172935492,0.0005412,69070.0,69059.0,0.63057543]
[1771172935916,0.0005412,69070.0,69059.0,0.65311132]
[1771172937667,0.63052191,69080.0,69059.0,0.65311132]
[1771172937668,0.02416069,69082.0,69066.0,0.02253589]
[1771172937869,0.02416069,69082.0,69067.0,0.34699604]
[1771172937870,0.63052191,69080.0,69067.0,0.34699604]
[1771172938069,0.02416069,69078.0,69067.0,0.34699604]
[1771172938270,0.02416069,69078.0,69068.0,5.352e-05]
[1771172939104,0.02416069,69077.0,69068.0,5.352e-05]
[1771172939459,0.02416069,69076.0,69068.0,5.352e-05]
[1771172939659,0.00062637,69081.0,69068.0,5.352e-05]
[1771172939660,0.02478706,69081.0,69068.0,5.352e-05]
[1771172939860,0.02478706,69081.0,69070.0,0.63052191]
[1771172940743,0.02478706,69081.0,69070.0,0.61022864]
[1771172940871,0.02478706,69081.0,69071.0,5.352e-05]
[1771172941099,0.00062637,69081.0,69071.0,5.352e-05]
[1771172941402,0.0001956,69092.0,69082.0,0.11133167]
[1771172941596,0.08997502,69106.0,69082.0,0.11133167]
[1771172941597,0.63052191,69110.0,69088.0,0.07155951]
[1771172941711,0.02435629,69103.0,69089.0,0.63052191]
[1771172941911,0.02435629,69103.0,69087.0,0.02172479]
[1771172941912,0.02435629,69103.0,69090.0,0.62916269]
[1771172942355,0.02435629,69103.0,69091.0,0.347]
[1771172942557,0.02435629,69103.0,69091.0,0.34375352]
[1771172942906,0.02435629,69103.0,69091.0,0.33969542]
[1771172943652,0.02416069,69100.0,69092.0,5.352e-05]
[1771172943854,0.02416069,69100.0,69091.0,0.33954898]
[1771172944254,0.02416069,69113.0,69092.0,0.11133167]
[1771172944499,0.11413571,69112.0,69092.0,0.11133167]
[1771172944695,0.08997502,69112.0,69092.0,0.11133167]
[1771172944936,0.02416069,69111.0,69092.0,0.11133167]
[1771172945217,0.02416069,69110.0,69092.0,0.11133167]
[1771172946439,0.02416069,69110.0,69092.0,0.02253589]
[1771172947013,0.71913771,69110.0,69092.0,0.02253589]
[1771172947173,0.02416069,69109.0,69091.0,0.33954898]
[1771172947989,0.02416069,69113.0,69099.0,0.62916269]
[1771172948202,0.02416069,69113.0,69100.0,0.34692]
[1771172950776,0.0004,69110.0,69100.0,0.34692]
[1771172950979,0.0004,69110.0,69100.0,0.97608269]
[1771172951858,0.00043663,69114.0,69100.0,0.97608269]
[1771172952132,0.00043663,69114.0,69101.0,0.08879578]
[1771172952420,0.00043663,69114.0,69106.0,0.02253589]
[1771172952560,0.00043663,69114.0,69107.0,0.02253589]
[1771172953260,0.00043663,69114.0,69108.0,0.34688]
[1771172954067,0.0002625,69129.0,69108.0,0.34688]
[1771172954288,0.02251636,69128.0,69110.0,0.71466056]
[1771172954445,0.02251636,69128.0,69111.0,0.0241809]
[1771172954647,0.02251636,69126.0,69108.0,0.34688]
[1771172954847,0.02251636,69124.0,69108.0,0.34688]
[1771172955417,0.02251636,69124.0,69110.0,0.62916269]
[1771172957507,0.02251636,69124.0,69108.0,0.37133126]
[1771172958620,0.0002625,69129.0,69109.0,0.3468]
[1771172958621,0.08933287,69118.0,69109.0,0.3468]
[1771172958788,0.02251636,69117.0,69109.0,0.00012913]
[1771172961603,0.02291636,69124.0,69109.0,0.00012913]
[1771172961760,0.02291636,69124.0,69110.0,0.10994913]
[1771172962782,0.02391636,69124.0,69110.0,0.10994913]
[1771172963164,0.02291636,69124.0,69110.0,0.73911182]
[1771172964585,0.02391636,69124.0,69110.0,0.73911182]
[1771172964791,0.02391636,69124.0,69110.0,0.10994913]
[1771172965779,0.02291636,69124.0,69110.0,0.10994913]
[1771172966149,0.02391636,69124.0,69110.0,0.10994913]
[1771172966367,0.02391636,69124.0,69109.0,0.00012913]
[1771172966368,0.62916269,69120.0,69109.0,0.00012913]
[1771172966555,0.02251636,69117.0,69098.0,0.02445126]
[1771172966760,0.02251636,69117.0,69096.0,0.08549787]
[1771172966761,0.02251636,69109.0,69099.0,0.34676]
[1771172967278,0.08933287,69108.0,69092.0,0.0002]
[1771172967532,0.02251636,69107.0,69093.0,0.34676]
[1771172968119,0.02251636,69106.0,69102.0,0.0002]
[1771172971621,0.62916269,69112.0,69102.0,0.0002]
[1771172971946,0.02251636,69114.0,69102.0,0.0002]
[1771172972144,0.65167905,69112.0,69102.0,0.0002]
[1771172972368,0.02251636,69111.0,69102.0,0.0002]
[1771172973851,0.00012906,69117.0,69102.0,0.0002]
[1771172974218,0.00012906,69117.0,69103.0,0.08549787]
[1771172974419,0.00012906,69117.0,69104.0,0.02445126]
[1771172976996,0.02251636,69116.0,69102.0,0.0002]
[1771172977456,0.02251636,69115.0,69102.0,0.0002]
[1771172978444,0.02251636,69115.0,69102.0,0.11014913]
[1771172978656,0.00052906,69117.0,69103.0,0.02445126]
[1771172979815,0.02304542,69117.0,69103.0,0.02445126]
[1771172982022,0.02304542,69117.0,69104.0,0.02445126]
[1771172982227,0.07232823,69130.0,69107.0,0.08549787]
[1771172982228,0.02251636,69127.0,69107.0,0.08549787]
[1771172982430,0.02251636,69126.0,69108.0,0.02445126]
[1771172982813,0.11184923,69126.0,69108.0,0.02445126]
[1771172983013,0.02251636,69125.0,69108.0,0.02445126]
[1771172983206,0.02251636,69125.0,69110.0,0.62916269]
[1771172985059,0.02251636,69125.0,69110.0,0.65255876]
[1771172985659,0.02343744,69124.0,69110.0,0.62916269]
[1771172985895,0.02343744,69124.0,69107.0,0.08562693]
[1771172986881,0.02343744,69124.0,69107.0,0.109023]
[1771172987470,0.02343744,69124.0,69110.0,0.62916269]
[1771172989058,0.02343744,69124.0,69110.0,0.65255876]
[1771172989679,0.02343744,69124.0,69111.0,0.02339607]
[1771172992092,0.0004,69125.0,69111.0,0.02339607]
[1771172992288,0.0004,69125.0,69112.0,0.02339607]
[1771172992652,0.02383744,69125.0,69112.0,0.02339607]
[1771172996853,0.02343744,69123.0,69110.0,0.62916269]
[1771172997252,0.0004,69125.0,69111.0,0.02339607]
[1771172997783,0.0004,69125.0,69115.0,0.62916269]
[1771172998423,0.0004,69125.0,69114.0,0.02339607]
[1771172999799,0.0004,69125.0,69110.0,0.62916269]
[1771173000006,0.02383744,69125.0,69110.0,0.62916269]
[1771173000450,0.08893975,69125.0,69110.0,0.62916269]
[1771173000691,0.02343744,69124.0,69110.0,0.62916269]
[1771173001379,0.02343744,69124.0,69110.0,0.65255876]
[1771173003391,0.02343744,69124.0,69110.0,0.62916269]
[1771173003610,0.02343744,69123.0,69110.0,0.62916269]
[1771173004030,0.02343744,69123.0,69110.0,0.62879406]
[1771173004697,0.0004,69125.0,69107.0,0.00012906]
[1771173004920,0.62879406,69120.0,69107.0,0.00012906]
[1771173005167,0.02343744,69118.0,69107.0,0.00012906]
[1771173005386,0.02343744,69117.0,69107.0,0.00012906]
[1771173005600,0.02343744,69117.0,69108.0,0.62879406]
[1771173006601,0.02343744,69117.0,69107.0,0.00012906]
[1771173006851,0.08853975,69117.0,69107.0,0.00012906]
[1771173007057,0.02330244,69114.0,69105.0,0.09268]
[1771173007273,0.02343744,69113.0,69105.0,0.09268]
[1771173008491,0.08853975,69112.0,69105.0,0.09268]
[1771173008690,0.02343744,69113.0,69097.0,0.0002]
[1771173008884,0.08853975,69113.0,69097.0,0.0002]
[1771173009097,0.00012906,69114.0,69097.0,0.0002]
[1771173009098,0.02343744,69112.0,69097.0,0.0002]
[1771173009297,0.02343744,69110.0,69097.0,0.0002]
[1771173009495,0.11197719,69108.0,69097.0,0.0002]
[1771173009807,0.02343744,69107.0,69097.0,0.0002]
[1771173012901,0.02343744,69105.0,69094.0,0.0002]
[1771173013101,0.02343744,69103.0,69094.0,0.0002]
[1771173013660,0.00012906,69114.0,69094.0,0.0002]
[1771173013859,0.02381962,69113.0,69094.0,0.08532546]
[1771173014097,0.08444116,69113.0,69094.0,0.08532546]
[1771173014275,0.02381962,69112.0,69094.0,0.08532546]
[1771173016005,0.08444116,69112.0,69094.0,0.08532546]
[1771173016210,0.02381962,69111.0,69094.0,0.08532546]
[1771173017270,0.02381962,69111.0,69094.0,0.0002]
[1771173018260,0.02381962,69111.0,69095.0,0.11002439]
[1771173019497,0.02381962,69111.0,69095.0,0.02489893]
[1771173021824,0.02377962,69111.0,69095.0,0.02489893]
[1771173023926,0.02381962,69107.0,69094.0,0.0002]
[1771173024083,0.02381962,69105.0,69094.0,0.0002]
[1771173030411,0.02381962,69111.0,69094.0,0.0002]
[1771173030617,0.02381962,69111.0,69094.0,0.02509893]
[1771173031598,0.02381962,69111.0,69094.0,0.08532546]
[1771173031806,0.02381962,69111.0,69095.0,0.02489893]
[1771173032182,0.02381962,69111.0,69100.0,0.62879406]
[1771173032585,0.0004,69125.0,69104.0,0.07235399]
[1771173032792,0.0004,69125.0,69112.0,0.02489893]
[1771173034132,0.0004,69125.0,69114.0,0.08512546]
[1771173034304,0.0004,69125.0,69115.0,0.02489893]
[1771173045288,0.0004,69125.0,69112.0,0.08512546]
[1771173045490,0.0004,69125.0,69110.0,0.65267945]
[1771173045690,0.0004,69125.0,69111.0,0.02388539]
[1771173046024,0.0004,69125.0,69111.0,0.11441096]
[1771173046779,0.0004,69125.0,69111.0,0.09052557]
[1771173046988,0.0004,69125.0,69112.0,0.02388539]
[1771173047692,0.0004,69125.0,69112.0,0.09052557]
[1771173047914,0.0004,69125.0,69113.0,0.02388539]
[1771173049169,0.0004,69125.0,69113.0,0.02408539]
[1771173050231,0.0004,69125.0,69113.0,0.0002]
[1771173050458,0.0004,69125.0,69114.0,0.62879406]
[1771173050667,0.0004,69125.0,69115.0,0.11441096]
[1771173050889,0.0004,69125.0,69114.0,0.62879406]
[1771173050890,0.0004,69125.0,69114.0,0.70113771]
[1771173051464,0.0004,69125.0,69116.0,0.02388539]
[1771173051669,0.0004,69125.0,69116.0,0.09052557]
[1771173051849,0.0004,69125.0,69117.0,0.02388539]
[1771173052544,0.0004,69125.0,69117.0,0.37060539]
[1771173052757,0.0004,69125.0,69117.0,0.46108699]
[1771173052944,0.0004,69125.0,69117.0,0.37056142]
[1771173053349,0.0004,69125.0,69118.0,0.02388539]
[1771173055013,0.0004,69125.0,69119.0,0.02388539]
[1771173058328,0.02457239,69134.0,69119.0,0.02388539]
[1771173058740,0.02457239,69134.0,69119.0,0.09052557]
[1771173058955,0.02457239,69134.0,69120.0,0.65267945]
[1771173059855,0.02457239,69132.0,69120.0,0.62879406]
[1771173060282,0.0001958,69137.0,69122.0,0.62879406]
[1771173060487,0.0001958,69137.0,69127.0,0.62879406]
[1771173061380,0.0001958,69137.0,69125.0,0.34668]
[1771173061533,0.08944447,69135.0,69125.0,0.34668]
[1771173061782,0.02457239,69134.0,69125.0,0.97547406]
[1771173062076,0.02457239,69134.0,69125.0,0.97532761]
[1771173062235,0.02457239,69134.0,69125.0,0.34653355]
[1771173063087,0.0001958,69148.0,69129.0,0.0723276]
[1771173063286,0.0001958,69148.0,69138.0,0.62879406]
[1771173064219,0.24656,69155.0,69141.0,0.02388539]
[1771173064423,0.24656,69155.0,69134.0,0.34668]
[1771173064424,0.24656,69155.0,69135.0,0.02388539]
[1771173064548,0.02457239,69153.0,69140.0,0.62879406]
[1771173065189,0.0004,69148.0,69140.0,0.62879406]
[1771173065993,0.0004,69148.0,69135.0,0.02388539]
[1771173065994,0.0004,69148.0,69138.0,0.62823534]
[1771173066995,0.0004,69148.0,69139.0,0.02388539]
[1771173067257,0.0004,69148.0,69139.0,0.11441096]
[1771173067471,0.0004,69148.0,69139.0,0.02388539]
[1771173067994,0.0004,69148.0,69138.0,0.62823534]
[1771173068868,0.0004,69148.0,69130.0,0.07232684]
[1771173068869,0.08944447,69146.0,69123.0,0.09052557]
[1771173069070,0.0004,69148.0,69120.0,0.97487534]
[1771173069071,0.62823534,69140.0,69120.0,0.97487534]
[1771173069300,0.11401686,69144.0,69120.0,0.97487534]
[1771173069475,0.11401686,69144.0,69130.0,0.62823534]
[1771173069476,0.02470145,69144.0,69130.0,0.62823534]
[1771173070864,0.08944447,69142.0,69130.0,0.62823534]
[1771173071079,0.02457239,69141.0,69130.0,0.62823534]
[1771173071971,0.08944447,69140.0,69120.0,0.62823534]
[1771173072138,0.02457239,69137.0,69124.0,0.3467919]
[1771173072338,0.02457239,69135.0,69124.0,0.3467919]
[1771173073274,0.02253578,69134.0,69124.0,0.3467919]
[1771173074101,0.02253578,69134.0,69130.0,0.0002]